bitfinex/quotes_SOLUSD_20250819
["timestamp","ask_amount","ask_price","bid_price","bid_amount"]
[1755606329870,5.9148478,182.41,182.4,0.03]
[1755606330270,5.9148478,182.42,182.4,0.03]
[1755606330471,5.9148478,182.41,182.4,0.03]
[1755606330789,5.9148478,182.42,182.4,0.03]
[1755606331566,6.5148478,182.42,182.4,0.03]
[1755606331783,5.9148478,182.42,182.4,0.71]
[1755606332084,5.91484781,182.44,182.41,0.68]
[1755606332304,1e-08,182.44,182.42,6.16185505]
[1755606333178,1e-08,182.44,182.42,5.48185505]
[1755606333388,1e-08,182.44,182.42,6.16185505]
[1755606334467,1e-08,182.44,182.42,5.48185505]
[1755606334691,1e-08,182.44,182.4,5.51245614]
[1755606334896,1e-08,182.44,182.42,0.68]
[1755606335875,1e-08,182.44,182.43,0.68]
[1755606336177,1e-08,182.44,182.41,0.68]
[1755606336687,1e-08,182.44,182.42,5.48185505]
[1755606337281,1e-08,182.44,182.43,0.68]
[1755606337679,1e-08,182.44,182.42,5.48185505]
[1755606338089,6.5148478,182.43,182.4,0.03]
[1755606338389,5.88365597,182.42,182.41,0.03]
[1755606338596,5.9148478,182.42,182.41,0.03]
[1755606338774,21.02106338,182.44,182.41,0.74]
[1755606338975,1e-08,182.44,182.41,0.74]
[1755606339180,1e-08,182.44,182.42,0.71]
[1755606339969,1e-08,182.44,182.41,0.03]
[1755606340191,5.91484781,182.44,182.41,0.03]
[1755606340408,1e-08,182.44,182.42,0.71]
[1755606340594,1e-08,182.44,182.43,0.71]
[1755606340797,1e-08,182.44,182.42,6.19157672]
[1755606345298,5.9148478,182.43,182.41,0.03]
[1755606345520,5.9148478,182.42,182.41,0.03]
[1755606346674,21.62106337,182.42,182.41,0.03]
[1755606346894,34.89566998,182.42,182.41,0.03]
[1755606348980,34.89646085,182.42,182.41,0.03]
[1755606351926,28.8146058,182.42,182.41,0.03]
[1755606352112,28.81458395,182.42,182.41,0.03]
[1755606352888,28.81458395,182.42,182.41,0.74]
[1755606353190,34.896439,182.42,182.41,0.03]
[1755606353412,28.81458395,182.42,182.41,0.03]
[1755606354013,22.89973615,182.42,182.41,0.74]
[1755606354714,19.20840662,182.42,182.41,0.74]
[1755606355178,4.10219105,182.42,182.41,0.74]
[1755606356087,3.6919366,182.43,182.41,0.74]
[1755606356288,18.79815218,182.44,182.41,0.74]
[1755606356492,4.10210225,182.43,182.42,0.71]
[1755606356807,7.79403885,182.43,182.42,0.71]
[1755606357489,4.10210225,182.43,182.42,0.71]
[1755606357692,21.02106338,182.44,182.42,0.71]
[1755606357892,15.10621558,182.44,182.42,0.71]
[1755606358092,18.79784745,182.44,182.42,0.71]
[1755606358316,18.79784745,182.44,182.43,0.71]
[1755606358528,22.89970214,182.44,182.43,0.71]
[1755606359008,1e-08,182.44,182.43,0.71]
[1755606359509,1e-08,182.44,182.41,6.22215558]
[1755606359713,1e-08,182.44,182.41,5.51215558]
[1755606359887,1e-08,182.44,182.42,0.71]
[1755606360916,1e-08,182.44,182.42,6.19180264]
[1755606361401,1e-08,182.44,182.43,0.71]
[1755606362024,1e-08,182.44,182.41,26.03]
[1755606362318,1e-08,182.44,182.41,26.74]
[1755606362492,4.10179706,182.44,182.41,26.74]
[1755606363617,4.10179706,182.44,182.41,0.74]
[1755606364417,21.02106337,182.42,182.41,0.03]
[1755606364589,22.90005586,182.42,182.41,0.03]
[1755606364792,28.81490366,182.42,182.41,0.03]
[1755606365119,15.10621557,182.42,182.41,0.03]
[1755606365425,15.10621557,182.42,182.41,0.74]
[1755606365787,3.69212646,182.43,182.41,6.6548478]
[1755606366010,1e-08,182.44,182.42,0.71]
[1755606366187,4.10199201,182.44,182.42,0.71]
[1755606366810,1e-08,182.44,182.42,0.71]
[1755606367011,1e-08,182.44,182.42,6.6248478]
[1755606367402,1e-08,182.44,182.43,0.71]
[1755606368110,1e-08,182.44,182.43,6.19155456]
[1755606368616,1e-08,182.44,182.43,12.10640236]
[1755606368917,1e-08,182.44,182.43,50.44640236]
[1755606369215,0.06,182.46,182.45,26.0]
[1755606369396,0.06,182.46,182.45,31.9148478]
[1755606369590,0.06,182.48,182.45,31.9148478]
[1755606369835,0.06,182.48,182.47,5.9148478]
[1755606370008,0.06,182.48,182.47,49.75520073]
[1755606370206,0.06,182.48,182.47,50.41520073]
[1755606371119,1e-08,182.48,182.47,54.91947622]
[1755606371416,9.375,182.56,182.5,26.0]
[1755606371723,9.375,182.56,182.51,39.08]
[1755606372015,0.06,182.52,182.51,38.42]
[1755606372318,0.06,182.52,182.51,43.89915182]
[1755606372520,0.06,182.54,182.53,26.0]
[1755606372942,9.375,182.56,182.54,26.0]
[1755606373104,9.375,182.56,182.55,45.0148478]
[1755606374195,9.375,182.56,182.55,50.49279904]
[1755606375433,4.6875,182.61,182.58,26.0]
[1755606375606,4.6875,182.61,182.6,5.9148478]
[1755606376123,4.6875,182.61,182.6,6.5748478]
[1755606376312,4.6875,182.61,182.6,12.05129905]
[1755606376718,4.6875,182.61,182.6,6.13645125]
[1755606377016,4.6875,182.61,182.6,12.05129905]
[1755606377425,4.6875,182.61,182.6,6.13645125]
[1755606377609,4.6875,182.61,182.6,12.05129905]
[1755606378919,4.6875,182.61,182.6,6.13645125]
[1755606379117,4.6875,182.61,182.6,12.05129905]
[1755606381003,4.6875,182.61,182.6,11.39129905]
[1755606381431,4.6875,182.61,182.6,12.05129905]
[1755606383830,4.6875,182.61,182.6,6.13645125]
[1755606384021,4.6875,182.61,182.6,5.47645125]
[1755606384224,4.6875,182.61,182.6,12.05129905]
[1755606384620,4.6875,182.61,182.59,11.39145413]
[1755606384846,4.6875,182.61,182.6,38.38]
[1755606385055,4.6875,182.61,182.6,44.9548478]
[1755606385530,4.6875,182.61,182.6,50.43129905]
[1755606386642,4.6875,182.61,182.6,44.51645125]
[1755606386821,4.6875,182.61,182.6,50.43129905]
[1755606387146,4.6875,182.61,182.6,26.0]
[1755606387345,4.6875,182.61,182.6,31.47645125]
[1755606387642,4.6875,182.61,182.6,37.39129905]
[1755606388029,4.6875,182.61,182.6,38.05129905]
[1755606389040,4.7475,182.61,182.6,38.05129905]
[1755606390250,4.7475,182.61,182.6,32.13645125]
[1755606390463,4.7475,182.61,182.6,38.05129905]
[1755606390635,4.7475,182.61,182.6,31.47645125]
[1755606390835,5.4075,182.61,182.6,31.47645125]
[1755606391047,4.7475,182.61,182.6,31.47645125]
[1755606392040,4.7475,182.61,182.6,26.0]
[1755606392554,4.7475,182.61,182.6,31.47645125]
[1755606392860,4.7475,182.61,182.6,26.0]
[1755606393056,4.7475,182.61,182.58,44.2948478]
[1755606393057,5.4075,182.61,182.58,38.38]
[1755606393223,0.66,182.6,182.58,26.0]
[1755606393425,0.66,182.59,182.57,43.87708463]
[1755606393654,10.6623478,182.61,182.56,26.03]
[1755606393655,0.66,182.58,182.56,69.90763155]
[1755606393952,0.66,182.58,182.56,43.90763155]
[1755606394850,0.66,182.58,182.57,26.0]
[1755606395672,5.9148478,182.6,182.57,26.0]
[1755606395673,6.5748478,182.6,182.57,26.0]
[1755606395862,0.66,182.59,182.57,26.0]
[1755606396863,5.9148478,182.6,182.57,26.0]
[1755606397068,6.5748478,182.6,182.57,26.0]
[1755606397784,10.6623478,182.61,182.57,32.13731774]
[1755606397950,11.3223478,182.61,182.57,32.13731774]
[1755606398768,4.7475,182.61,182.57,32.13731774]
[1755606398957,4.7475,182.61,182.58,6.14699364]
[1755606401058,4.7475,182.61,182.58,5.47699364]
[1755606401373,4.7475,182.61,182.59,0.67]
[1755606401766,11.3223478,182.61,182.57,31.47728266]
[1755606401967,0.66,182.6,182.57,31.47728266]
[1755606402690,5.9148478,182.58,182.56,0.03]
[1755606402873,5.9148478,182.58,182.56,26.03]
[1755606403053,6.5748478,182.58,182.56,26.03]
[1755606403591,6.5748478,182.57,182.56,0.03]
[1755606404084,5.9148478,182.57,182.56,0.03]
[1755606404385,21.02106337,182.58,182.56,0.03]
[1755606405979,19.85371557,182.61,182.57,0.67]
[1755606406291,5.9148478,182.59,182.56,0.03]
[1755606406477,5.9148478,182.58,182.56,0.03]
[1755606406646,5.9148478,182.57,182.56,0.03]
[1755606406996,15.10621557,182.6,182.56,0.7]
[1755606407291,5.9148478,182.6,182.57,5.47735115]
[1755606407489,10.6623478,182.61,182.57,5.47735115]
[1755606407656,4.7475,182.61,182.58,0.67]
[1755606408473,10.6623478,182.61,182.57,5.47735115]
[1755606408664,11.3223478,182.61,182.57,5.47735115]
[1755606408870,21.02106337,182.59,182.56,0.03]
[1755606409078,5.9148478,182.57,182.56,0.03]
[1755606409383,15.10621557,182.59,182.56,0.03]
[1755606409384,5.9148478,182.58,182.56,0.03]
[1755606410651,6.5748478,182.58,182.56,0.03]
[1755606411663,5.9148478,182.57,182.56,0.03]
[1755606414768,5.9148478,182.58,182.56,0.03]
[1755606415580,6.5748478,182.58,182.56,0.03]
[1755606415978,21.02106337,182.57,182.56,0.03]
[1755606416160,25.77478796,182.57,182.56,0.03]
[1755606416480,21.68106337,182.57,182.56,0.03]
[1755606417058,25.77506636,182.57,182.56,0.03]
[1755606417385,31.25241751,182.57,182.56,0.03]
[1755606417764,34.93663793,182.57,182.56,0.03]
[1755606418384,31.25241751,182.57,182.56,0.03]
[1755606420778,34.93522891,182.57,182.56,0.03]
[1755606421201,30.84122592,182.57,182.56,0.03]
[1755606421380,34.93343481,182.57,182.56,0.03]
[1755606421873,34.93336312,182.57,182.56,0.03]
[1755606422791,34.27336312,182.57,182.56,0.03]
[1755606423897,72.69336312,182.57,182.56,0.03]
[1755606424073,63.53320057,182.57,182.56,0.7]
[1755606424281,63.53320057,182.57,182.56,0.03]
[1755606425698,63.53320057,182.57,182.56,0.7]
[1755606425998,59.44106337,182.57,182.56,0.7]
[1755606426192,21.02106337,182.57,182.56,0.7]
[1755606426594,38.42,182.58,182.56,0.7]
[1755606427086,53.52621557,182.58,182.57,0.67]
[1755606427284,57.61553231,182.58,182.57,0.67]
[1755606428380,44.3348478,182.59,182.57,0.67]
[1755606429504,44.3348478,182.59,182.56,0.03]
[1755606429695,53.52621557,182.59,182.58,0.71]
[1755606430003,19.85371557,182.61,182.58,0.71]
[1755606430376,19.85371557,182.61,182.58,6.18691281]
[1755606430605,19.85371557,182.61,182.59,0.71]
[1755606430910,19.85371557,182.61,182.6,0.71]
[1755606431099,23.94450304,182.61,182.6,0.71]
[1755606432210,4.7475,182.61,182.6,6.18645125]
[1755606433587,4.7475,182.61,182.6,12.10129905]
[1755606437123,4.7475,182.61,182.6,38.10129905]
[1755606439199,3.653228,182.61,182.6,38.10129905]
[1755606440289,0.06,182.61,182.6,91.30129905]
[1755606440708,0.06,182.61,182.6,32.18645125]
[1755606441301,0.06,182.61,182.6,38.10129905]
[1755606448527,0.06,182.61,182.6,76.50129905]
[1755606448909,0.06,182.61,182.6,70.58645125]
[1755606449203,0.06,182.61,182.6,76.50129905]
[1755606454735,0.06,182.61,182.6,70.58645125]
[1755606454939,0.06,182.61,182.6,76.50129905]
[1755606455234,0.06,182.61,182.6,75.79129905]
[1755606455802,0.06,182.61,182.6,75.82129905]
[1755606456218,0.06,182.61,182.6,70.61645125]
[1755606456540,0.06,182.61,182.6,76.53129905]
[1755606459450,0.06,182.61,182.6,50.53129905]
[1755606460337,0.06,182.63,182.62,31.9148478]
[1755606460537,0.06,182.63,182.62,70.2748478]
[1755606460733,0.06,182.63,182.62,70.9748478]
[1755606461149,0.06,182.63,182.62,76.45069929]
[1755606462157,0.06,182.63,182.62,70.53585149]
[1755606462450,0.06,182.63,182.62,69.83585149]
[1755606463541,0.06,182.63,182.62,76.45069929]
[1755606464361,0.06,182.63,182.62,70.53585149]
[1755606464653,0.06,182.63,182.62,76.45069929]
[1755606465137,0.06,182.63,182.62,70.53585149]
[1755606465324,0.06,182.63,182.62,76.45069929]
[1755606466458,0.06,182.65,182.62,76.45069929]
[1755606466633,0.06,182.65,182.64,5.9148478]
[1755606466828,0.06,182.65,182.64,44.2948478]
[1755606467029,0.06,182.65,182.64,44.9948478]
[1755606467240,0.06,182.65,182.64,39.08]
[1755606467443,0.06,182.65,182.64,50.47009966]
[1755606470235,0.06,182.65,182.64,123.75525186]
[1755606470440,0.72,182.65,182.64,84.67525186]
[1755606470632,0.06,182.65,182.64,128.95009966]
[1755606470936,0.72,182.65,182.64,123.03525186]
[1755606471856,0.06,182.65,182.64,123.03525186]
[1755606472943,0.72,182.65,182.64,123.03525186]
[1755606473329,0.72,182.65,182.64,117.56]
[1755606473532,0.72,182.65,182.64,79.2]
[1755606473934,6.6348478,182.65,182.63,0.03]
[1755606474346,0.66,182.64,182.63,0.03]
[1755606476136,6.5748478,182.64,182.63,0.03]
[1755606476358,16.1471062,182.64,182.63,0.03]
[1755606476564,16.14731679,182.64,182.63,0.03]
[1755606478765,31.25353236,182.64,182.63,0.03]
[1755606479356,34.94248918,182.64,182.63,0.03]
[1755606482367,40.85733698,182.64,182.63,0.03]
[1755606483096,15.10621557,182.62,182.61,0.03]
[1755606483244,21.02106337,182.61,182.6,0.03]
[1755606483444,29.02854088,182.61,182.6,0.03]
[1755606483639,73.34338868,182.61,182.6,0.03]
[1755606483843,73.34013192,182.61,182.6,0.03]
[1755606484273,73.34013192,182.61,182.59,0.03]
[1755606484468,15.10621557,182.58,182.54,0.03]
[1755606484674,28.80419785,182.58,182.54,0.03]
[1755606484852,29.43419785,182.57,182.54,0.03]
[1755606485970,73.431549,182.57,182.54,0.03]
[1755606487870,73.41617067,182.57,182.54,0.03]
[1755606489378,69.74259218,182.57,182.54,0.03]
[1755606489678,73.41180915,182.57,182.54,0.03]
[1755606490178,69.74259218,182.57,182.54,0.03]
[1755606491589,69.74259218,182.57,182.52,1e-08]
[1755606491590,41.10621557,182.53,182.52,1e-08]
[1755606491767,15.10621557,182.52,182.5,0.03]
[1755606491967,21.02106337,182.51,182.5,0.03]
[1755606492574,15.73621557,182.51,182.5,0.03]
[1755606492882,21.65106337,182.51,182.5,0.03]
[1755606493675,27.13021519,182.51,182.5,0.03]
[1755606494764,26.50021519,182.51,182.5,0.03]
[1755606495281,65.04021519,182.51,182.5,0.03]
[1755606499103,21.02106337,182.51,182.5,0.69]
[1755606499267,26.50021519,182.51,182.5,0.03]
[1755606500981,26.50021519,182.51,182.5,0.69]
[1755606501495,26.50021519,182.51,182.5,0.03]
[1755606504673,65.02021519,182.51,182.5,0.03]
[1755606505196,65.02021519,182.51,182.5,0.69]
[1755606506465,59.54106337,182.51,182.5,0.69]
[1755606506664,5.9148478,182.51,182.5,0.69]
[1755606507978,26.50021519,182.51,182.5,0.03]
[1755606508298,65.04021519,182.51,182.5,0.03]
[1755606512202,69.09839275,182.51,182.5,0.03]
[1755606513894,69.72839275,182.51,182.5,0.03]
[1755606514075,47.02106337,182.49,182.48,0.03]
[1755606514274,89.62377028,182.49,182.48,0.03]
[1755606514701,90.25377028,182.49,182.48,0.03]
[1755606515601,95.73352259,182.49,182.48,0.03]
[1755606517599,15.10621557,182.46,182.44,0.03]
[1755606517779,63.60377028,182.45,182.44,0.03]
[1755606517974,63.62377028,182.45,182.44,0.69]
[1755606518886,69.10472396,182.45,182.44,0.69]
[1755606519299,69.10472396,182.45,182.44,0.03]
[1755606520613,69.11772452,182.45,182.44,0.03]
[1755606520977,69.11772452,182.45,182.44,0.7]
[1755606524805,69.11772452,182.45,182.44,0.03]
[1755606525513,69.11772452,182.45,182.44,0.7]
[1755606526702,72.79513403,182.45,182.44,0.7]
[1755606527914,72.79513403,182.45,182.44,0.03]
[1755606529812,73.44010253,182.45,182.44,0.03]
[1755606530402,72.81039226,182.45,182.44,0.03]
[1755606531591,73.44039226,182.45,182.44,0.03]
[1755606531792,21.02106337,182.43,182.42,0.03]
[1755606531993,67.26943858,182.43,182.42,0.03]
[1755606532186,67.36943858,182.43,182.42,0.03]
[1755606532812,72.85039228,182.43,182.42,0.03]
[1755606533197,72.75039228,182.43,182.42,0.03]
[1755606535193,72.85039228,182.43,182.42,0.03]
[1755606536592,15.10621557,182.42,182.41,0.03]
[1755606536808,28.88883772,182.42,182.41,0.03]
[1755606537214,28.88883772,182.42,182.4,0.03]
[1755606537215,58.41806675,182.41,182.4,0.03]
[1755606537418,58.41806675,182.41,182.39,0.03]
[1755606537419,15.10621557,182.4,182.39,0.03]
[1755606537585,34.90368552,182.4,182.39,0.03]
[1755606538585,34.70368552,182.4,182.39,0.03]
[1755606538792,34.69917662,182.4,182.39,0.03]
[1755606538992,28.78432882,182.4,182.39,0.03]
[1755606539191,34.26678496,182.4,182.39,0.03]
[1755606539414,34.26671331,182.4,182.39,0.03]
[1755606540199,34.26671331,182.4,182.39,0.7]
[1755606541120,67.24425717,182.4,182.39,0.7]
[1755606541322,63.5646863,182.4,182.39,0.7]
[1755606542193,63.13229464,182.4,182.39,0.7]
[1755606542399,63.5646863,182.4,182.39,0.7]
[1755606543715,15.10621557,182.4,182.39,0.7]
[1755606544907,21.02106337,182.4,182.39,0.7]
[1755606546121,5.9148478,182.43,182.39,0.7]
[1755606546333,4.08323274,182.42,182.39,12.09760453]
[1755606546629,137.54072599,182.46,182.4,0.67]
[1755606546630,15.10621557,182.43,182.4,0.67]
[1755606546915,44.3948478,182.44,182.4,0.67]
[1755606546916,38.48,182.44,182.4,0.67]
[1755606547310,38.48,182.44,182.4,6.15229581]
[1755606547511,38.48,182.44,182.41,0.67]
[1755606547713,5.9148478,182.44,182.41,0.67]
[1755606551721,4.08774949,182.43,182.41,0.67]
[1755606554317,15.10621557,182.44,182.41,0.67]
[1755606554618,4.09223633,182.43,182.41,6.15215558]
[1755606554814,4.09223633,182.43,182.42,0.66]
[1755606555608,0.06,182.46,182.42,12.05670285]
[1755606555800,0.06,182.46,182.43,6.5748478]
[1755606556195,0.06,182.46,182.44,0.66]
[1755606556614,4.15303716,182.46,182.44,0.66]
[1755606556815,0.06,182.46,182.44,0.66]
[1755606557211,4.15436967,182.46,182.44,0.66]
[1755606557412,0.06,182.46,182.44,0.66]
[1755606557814,4.15520691,182.46,182.44,6.14124162]
[1755606558009,4.15520691,182.46,182.45,0.66]
[1755606559917,4.15520691,182.46,182.45,6.14095368]
[1755606562237,0.06,182.46,182.45,38.05580148]
[1755606562530,0.06,182.47,182.45,38.05580148]
[1755606562736,0.06,182.47,182.46,5.9148478]
[1755606562942,0.06,182.47,182.46,6.5748478]
[1755606563642,0.06,182.47,182.46,0.66]
[1755606565838,0.06,182.47,182.44,6.14119851]
[1755606566038,5.9748478,182.47,182.44,6.14119851]
[1755606566345,5.9148478,182.45,182.42,85.34177308]
[1755606566514,0.06,182.47,182.44,5.9148478]
[1755606566716,0.06,182.47,182.43,0.66]
[1755606567226,0.06,182.47,182.43,6.5748478]
[1755606567437,0.06,182.47,182.44,0.66]
[1755606567753,0.06,182.47,182.45,5.48095368]
[1755606568115,0.06,182.47,182.46,0.66]
[1755606569042,0.06,182.47,182.45,5.48095368]
[1755606569334,0.06,182.47,182.45,6.14095368]
[1755606569560,5.9148478,182.46,182.43,0.66]
[1755606569732,5.9148478,182.46,182.43,6.14150582]
[1755606571251,5.9148478,182.46,182.43,0.66]
[1755606571558,5.9148478,182.45,182.41,6.14209649]
[1755606572141,5.9148478,182.45,182.41,5.48209649]
[1755606572338,0.69,182.46,182.42,0.66]
[1755606572538,5.9148478,182.45,182.42,0.66]
[1755606572737,5.9148478,182.45,182.43,0.66]
[1755606573339,21.02106337,182.46,182.43,0.66]
[1755606573960,21.02106337,182.46,182.4,11.39702013]
[1755606574135,5.9148478,182.45,182.41,0.66]
[1755606574334,21.71106337,182.46,182.42,0.66]
[1755606575474,21.02106337,182.46,182.42,0.66]
[1755606575836,21.02106337,182.46,182.43,0.66]
[1755606576245,21.71106337,182.46,182.41,6.14209767]
[1755606576466,21.71106337,182.46,182.42,0.66]
[1755606577655,21.71106337,182.46,182.41,5.48209767]
[1755606577656,5.9148478,182.44,182.4,6.14237561]
[1755606578054,5.9148478,182.44,182.4,5.48237561]
[1755606578261,5.9148478,182.44,182.41,0.71]
[1755606578448,5.9148478,182.45,182.41,0.71]
[1755606578772,5.9148478,182.45,182.42,0.71]
[1755606579269,5.9148478,182.45,182.43,0.71]
[1755606580250,21.02106337,182.46,182.43,6.19154706]
[1755606580457,15.10621557,182.46,182.44,0.71]
[1755606580958,21.08106337,182.47,182.44,0.71]
[1755606582146,15.16621557,182.47,182.44,0.71]
[1755606582349,21.08106337,182.47,182.44,0.71]
[1755606582673,21.75106337,182.47,182.42,6.19176019]
[1755606582859,21.75106337,182.47,182.43,0.71]
[1755606583471,4.09118137,182.46,182.43,0.71]
[1755606583772,21.75106337,182.47,182.43,0.71]
[1755606583974,4.091182,182.46,182.43,0.71]
[1755606584170,15.83621557,182.47,182.43,0.71]
[1755606584474,4.09313206,182.46,182.43,0.71]
[1755606584964,4.09313206,182.46,182.44,0.71]
[1755606585170,21.08106337,182.47,182.44,0.71]
[1755606585865,0.06,182.47,182.44,0.71]
[1755606586082,4.15305157,182.47,182.44,0.71]
[1755606586452,4.15305157,182.47,182.44,6.19122637]
[1755606587882,10.73789937,182.47,182.43,6.19146097]
[1755606588054,10.00789937,182.46,182.43,0.71]
[1755606588255,5.9148478,182.46,182.43,0.71]
[1755606589467,4.09804444,182.45,182.43,0.71]
[1755606589978,5.9148478,182.46,182.43,0.71]
[1755606590277,4.09797279,182.45,182.43,0.71]
[1755606590778,4.09797279,182.45,182.43,0.74]
[1755606591370,5.9148478,182.46,182.43,0.74]
[1755606591561,4.10070326,182.45,182.43,0.74]
[1755606593082,5.9148478,182.46,182.43,0.74]
[1755606593384,4.10113002,182.45,182.43,0.74]
[1755606593582,4.10113002,182.45,182.44,0.71]
[1755606593949,4.10113002,182.46,182.44,0.71]
[1755606594174,4.10112938,182.45,182.44,0.71]
[1755606594363,4.10112938,182.46,182.44,0.71]
[1755606594564,4.10112938,182.45,182.44,0.71]
[1755606594763,4.10112938,182.46,182.44,0.71]
[1755606594958,4.10112938,182.45,182.44,0.71]
[1755606595163,4.10112938,182.46,182.44,0.71]
[1755606595365,4.10112938,182.45,182.44,0.71]
[1755606595659,10.01597718,182.45,182.43,0.03]
[1755606595977,10.01597718,182.44,182.43,0.03]
[1755606596365,0.67,182.45,182.43,0.03]
[1755606596366,6.5848478,182.45,182.43,0.03]
[1755606596991,4.10237077,182.44,182.43,0.03]
[1755606597156,4.10237077,182.44,182.43,0.74]
[1755606597358,11.39553841,182.46,182.43,0.74]
[1755606597557,4.10291192,182.45,182.43,0.03]
[1755606597776,15.75830325,182.46,182.43,0.03]
[1755606597981,4.10298331,182.45,182.43,0.03]
[1755606598200,4.10298331,182.44,182.43,0.03]
[1755606599090,15.75890389,182.46,182.43,0.03]
[1755606599091,4.10298331,182.45,182.43,0.03]
[1755606599258,4.10298331,182.44,182.43,0.03]
[1755606599464,4.1042428,182.44,182.43,0.03]
[1755606599676,4.1043869,182.44,182.43,0.03]
[1755606600373,10.6892347,182.44,182.43,0.03]
[1755606600699,25.79545027,182.44,182.43,0.03]
[1755606600902,29.48958547,182.44,182.43,0.03]
[1755606601482,34.97224785,182.44,182.43,0.03]
[1755606603601,4.10579517,182.44,182.43,0.03]
[1755606603763,4.10579517,182.44,182.43,0.74]
[1755606604985,4.10579517,182.44,182.43,6.6548478]
[1755606605362,38.44,182.47,182.44,5.48125411]
[1755606605561,4.10241459,182.46,182.44,6.19125411]
[1755606605783,4.10241459,182.45,182.44,6.19125411]
[1755606605981,38.44,182.47,182.44,6.19125411]
[1755606606188,4.10241331,182.46,182.44,6.19125411]
[1755606606984,38.44,182.47,182.44,6.19125411]
[1755606607182,38.44,182.47,182.45,0.71]
[1755606607383,38.44,182.47,182.46,0.71]
[1755606607613,42.13255369,182.47,182.44,6.19125411]
[1755606607801,38.44,182.47,182.45,0.71]
[1755606608616,38.44,182.47,182.43,5.51154568]
[1755606608794,5.9148478,182.46,182.43,0.03]
[1755606609218,9.60888741,182.46,182.43,0.03]
[1755606609720,9.60888741,182.46,182.43,0.71]
[1755606609929,5.9148478,182.46,182.43,0.71]
[1755606610226,38.44,182.47,182.44,0.68]
[1755606610436,38.44,182.47,182.44,6.5948478]
[1755606610617,0.06,182.47,182.45,0.68]
[1755606611010,0.06,182.47,182.43,5.9448478]
[1755606611191,0.06,182.47,182.46,0.68]
[1755606611722,0.06,182.47,182.44,6.16125411]
[1755606612703,0.06,182.47,182.45,0.68]
[1755606613103,0.06,182.47,182.45,6.16086271]
[1755606613324,0.06,182.47,182.46,0.68]
[1755606613720,0.06,182.47,182.45,0.68]
[1755606614325,0.06,182.47,182.46,26.0]
[1755606615131,5.9748478,182.47,182.45,26.68]
[1755606615611,6.6648478,182.47,182.43,5.51148278]
[1755606615812,6.6648478,182.47,182.43,6.19148278]
[1755606616012,4.10634582,182.46,182.43,6.19148278]
[1755606616835,5.9748478,182.47,182.44,0.68]
[1755606617724,10.02105731,182.46,182.43,0.03]
[1755606617929,5.9148478,182.46,182.43,0.03]
[1755606618257,4.10635495,182.45,182.43,0.03]
[1755606618403,4.10635495,182.44,182.43,6.19151905]
[1755606619121,9.66995314,182.47,182.43,6.19151905]
[1755606619293,4.10631053,182.46,182.43,6.19151905]
[1755606619492,4.10631053,182.45,182.43,6.19151905]
[1755606619695,4.10631053,182.44,182.43,0.71]
[1755606621419,4.10631053,182.44,182.43,6.19155456]
[1755606622454,4.1061897,182.44,182.43,6.19155456]
[1755606623116,0.06,182.47,182.43,12.10640236]
[1755606623311,4.10604679,182.46,182.44,6.5948478]
[1755606623541,0.06,182.47,182.45,0.68]
[1755606623712,4.10586713,182.46,182.45,0.68]
[1755606624114,4.10586713,182.46,182.45,6.16095368]
[1755606624422,0.06,182.47,182.45,6.16095368]
[1755606624618,4.16568927,182.47,182.45,0.68]
[1755606624823,4.16568927,182.47,182.43,0.71]
[1755606624824,5.9148478,182.46,182.43,0.71]
[1755606625131,0.69,182.45,182.43,0.03]